fUSD/lending_fUSD_20240218
["ID","MTS","AMOUNT","RATE_DAILY","PERIOD"]
[314400917,1708287044309,-500.0,0.00036833,2]
[314400919,1708287044319,-500.0,0.00036833,2]
[314400921,1708287044328,-500.0,0.00036833,2]
[314400923,1708287044337,-500.0,0.00036833,2]
[314400925,1708287044347,-500.0,0.00036833,2]
[314400927,1708287044356,-577.42,0.00036833,2]
[314400929,1708287044365,-500.0,0.00036833,2]
[314400931,1708287044374,-500.0,0.00036833,2]
[314400933,1708287044384,-500.0,0.00036833,2]
[314400935,1708287044394,-500.0,0.00036833,2]
[314400937,1708287044403,-500.0,0.00036833,2]
[314400939,1708287044412,-500.0,0.00036833,2]
[314400941,1708287044421,-500.0,0.00036833,2]
[314400943,1708287044430,-500.0,0.00036833,2]
[314400945,1708287044439,-500.0,0.00036833,2]
[314400947,1708287044449,-500.0,0.00036833,2]
[314400949,1708287044458,-500.0,0.00036833,2]
[314400951,1708287044467,-500.0,0.00036833,2]
[314400953,1708287044476,-500.0,0.00036833,2]
[314400955,1708287044486,-500.0,0.00036833,2]
[314400959,1708287044506,-500.0,0.00036833,2]
[314400961,1708287044519,-500.0,0.00036833,2]
[314400963,1708287044528,-333.39756531,0.00036833,2]
[314400965,1708287044537,-500.0,0.00036833,2]
[314400967,1708287044547,-500.0,0.00036833,2]
[314400969,1708287044556,-500.0,0.00036833,2]
[314400971,1708287044565,-636.64,0.00036833,2]
[314400973,1708287044575,-500.0,0.00036833,2]
[314400975,1708287044584,-500.0,0.00036833,2]
[314400977,1708287044594,-500.0,0.00036833,2]
[314400980,1708287044604,-500.0,0.00036833,2]
[314400982,1708287044615,-500.0,0.00036833,2]
[314400984,1708287044627,-500.0,0.00036833,2]
[314400986,1708287044636,-500.0,0.00036833,2]
[314400988,1708287044645,-455.90536595,0.00036833,2]
[314400989,1708287044655,-500.0,0.00036833,2]
[314400992,1708287044665,-500.0,0.00036833,2]
[314400994,1708287044674,-500.0,0.00036833,2]
[314400996,1708287044684,-500.0,0.00036833,2]
[314400998,1708287044693,-500.0,0.00036833,2]
[314401000,1708287044703,-500.0,0.00036833,2]
[314401002,1708287044713,-500.0,0.00036833,2]
[314401004,1708287044723,-764.1,0.00036833,2]
[314401006,1708287044732,-500.0,0.00036833,2]
[314401008,1708287044741,-500.0,0.00036833,2]
[314401010,1708287044751,-500.0,0.00036833,2]
[314401012,1708287044759,-500.0,0.00036833,2]
[314401014,1708287044769,-528.38837958,0.00036833,2]
[314401016,1708287044778,-500.0,0.00036833,2]
[314401018,1708287044787,-500.0,0.00036833,2]
[314401020,1708287044796,-500.0,0.00036833,2]
[314401022,1708287044806,-500.0,0.00036833,2]
[314401024,1708287044815,-500.0,0.00036833,2]
[314401026,1708287044824,-500.0,0.00036833,2]
[314401028,1708287044833,-500.0,0.00036833,2]
[314401030,1708287044842,-500.0,0.00036833,2]
[314401032,1708287044851,-500.0,0.00036833,2]
[314401034,1708287044860,-500.0,0.00036833,2]
[314401036,1708287044870,-500.0,0.00036833,2]
[314401038,1708287044879,-500.0,0.00036833,2]
[314401040,1708287044888,-500.0,0.00036833,2]
[314401042,1708287044897,-500.0,0.00036833,2]
[314401044,1708287044907,-500.0,0.00036833,2]
[314401046,1708287044916,-500.0,0.00036833,2]
[314401048,1708287044925,-500.0,0.00036833,2]
[314401050,1708287044935,-500.0,0.00036833,2]
[314401052,1708287044944,-500.0,0.00036833,2]
[314401055,1708287044953,-500.0,0.00036833,2]
[314401057,1708287044963,-500.0,0.00036833,2]
[314401059,1708287044973,-500.0,0.00036833,2]
[314401061,1708287044982,-419.76845481,0.00036833,2]
[314401063,1708287044991,-1446.9400891,0.00036834,2]
[314401065,1708287045000,-245000.0,0.00036834,2]
[314401067,1708287045009,-326.4,0.00036852,2]
[314401069,1708287045018,-664.47,0.00036879,2]
[314401071,1708287045031,-209.26241077,0.000369,2]
[314401073,1708287045040,-4785.79756622,0.00036914,10]
[314401075,1708287045049,-157.57060608,0.00036914,2]
[314401077,1708287045059,-500.0,0.00036924,2]
[314401079,1708287045069,-500.0,0.00036924,2]
[314401081,1708287045079,-444.79095048,0.00036924,2]
[314401083,1708287045088,-500.0,0.00036924,2]
[314401085,1708287045098,-500.0,0.00036924,2]
[314401087,1708287045107,-500.0,0.00036924,2]
[314401089,1708287045116,-500.0,0.00036924,2]
[314401091,1708287045126,-500.0,0.00036924,2]
[314401093,1708287045135,-500.0,0.00036924,2]
[314401095,1708287045145,-500.0,0.00036924,2]
[314401098,1708287045155,-500.0,0.00036924,2]
[314401100,1708287045165,-405.375,0.00036924,2]
[314401102,1708287045174,-500.0,0.00036924,2]
[314401104,1708287045183,-500.0,0.00036924,2]
[314401106,1708287045192,-557.26,0.00036924,2]
[314401108,1708287045202,-500.0,0.00036924,2]
[314401110,1708287045211,-500.0,0.00036924,2]
[314401112,1708287045222,-500.0,0.00036924,2]
[314401114,1708287045231,-500.0,0.00036924,2]
[314401116,1708287045241,-500.0,0.00036924,2]
[314401118,1708287045250,-500.0,0.00036924,2]
[314401120,1708287045259,-500.0,0.00036924,2]
[314401122,1708287045269,-404.49858941,0.00036924,2]
[314401124,1708287045279,-500.0,0.00036924,2]
[314401126,1708287045288,-500.0,0.00036924,2]
[314401128,1708287045297,-555.03808358,0.00036924,2]
[314401130,1708287045307,-500.0,0.00036924,2]
[314401132,1708287045316,-265.88090685,0.00036924,2]
[314401134,1708287045325,-500.0,0.00036924,2]
[314401136,1708287045334,-500.0,0.00036924,2]
[314401138,1708287045343,-11964.4939155,0.00036924,10]
[314401140,1708287045353,-11090.4781,0.00036934,2]
[314401142,1708287045362,-40551.4377,0.00036934,2]
[314401144,1708287045372,-353.77003242,0.00037,4]
[314401146,1708287045381,-1417.79,0.00037075,2]
[314401148,1708287045391,-603.17,0.00037107,2]
[314401150,1708287045400,-200.0,0.000372,10]
[314401153,1708287045410,-194.33393084,0.00037202,8]
[314401155,1708287045419,-1043.71300607,0.000374,2]
[314401157,1708287045429,-4141.51963895,0.000374,2]
[314401159,1708287045438,-226.14,0.00037452,2]
[314401161,1708287045447,-1000.0,0.000375,2]
[314401163,1708287045457,-3773.60925,0.00037515,2]
[314401165,1708287045466,-169.15,0.0003753,2]
[314401167,1708287045477,-162.07,0.00037603,2]
[314401169,1708287045486,-194.33393084,0.00037651,8]
[314401171,1708287045495,-180.0,0.000377,2]
[314401173,1708287045504,-486.05,0.000378,2]
[314401175,1708287045513,-151.53,0.00037854,2]
[314401176,1708287045522,-1052.33249565,0.00037891,7]
[314401178,1708287045531,-359.13204473,0.00037891,7]
[314401181,1708287045541,-1630.438873,0.00037891,7]
[314401183,1708287045550,-286.36035612,0.00037891,7]
[314401185,1708287045563,-154.81544856,0.00037891,7]
[314401187,1708287045572,-1000.0,0.00037891,10]
[314401189,1708287045582,-20162.78737509,0.00037891,7]
[314401191,1708287045591,-1543.18232449,0.00037891,8]
[314401193,1708287045601,-2640.42419547,0.00037891,8]
[314401195,1708287045611,-12510.75557613,0.00037982,2]
[314401197,1708287045623,-847.37300606,0.00037982,2]
[314401199,1708287045632,-2386.92741056,0.00037982,2]
[314401201,1708287045641,-663.53986798,0.00037982,2]
[314401227,1708287045864,-300.0,0.00038,39]
[314401229,1708287045875,-166.92532278,0.00038,4]
[314401231,1708287045884,-158.44830995,0.00038,2]
[314401232,1708287045893,-158.44830995,0.00038,2]
[314401233,1708287045902,-158.44830995,0.00038,2]
[314401234,1708287045911,-158.44830995,0.00038,2]
[314401235,1708287045920,-158.44830995,0.00038,2]
[314401236,1708287045929,-158.44830995,0.00038,2]
[314401237,1708287045938,-158.44830995,0.00038,2]
[314401238,1708287045947,-158.44830995,0.00038,2]
[314401239,1708287045956,-158.44830995,0.00038,2]
[314401241,1708287045965,-158.44830995,0.00038,2]
[314401243,1708287045975,-158.44830995,0.00038,2]
[314401245,1708287045985,-158.44830995,0.00038,2]
[314401247,1708287045994,-158.44830995,0.00038,2]
[314401249,1708287046003,-158.44830995,0.00038,2]
[314401251,1708287046013,-158.44830995,0.00038,2]
[314401253,1708287046022,-158.44830995,0.00038,2]
[314401255,1708287046034,-158.44830995,0.00038,2]
[314401257,1708287046043,-158.44830995,0.00038,2]
[314401259,1708287046052,-158.44830995,0.00038,2]
[314401261,1708287046062,-158.44830995,0.00038,2]
[314401263,1708287046072,-158.44830995,0.00038,2]
[314401265,1708287046081,-158.44830995,0.00038,2]
[314401267,1708287046091,-158.44830995,0.00038,2]
[314401269,1708287046100,-158.44830995,0.00038,2]
[314401271,1708287046109,-158.44830995,0.00038,2]
[314401273,1708287046119,-158.44830995,0.00038,2]
[314401275,1708287046128,-158.44830995,0.00038,2]
[314401277,1708287046138,-158.44830995,0.00038,2]
[314401279,1708287046147,-158.44830995,0.00038,2]
[314401281,1708287046156,-158.44830995,0.00038,2]
[314401283,1708287046165,-158.44830995,0.00038,2]
[314401285,1708287046175,-158.44830995,0.00038,2]
[314401287,1708287046184,-158.44830995,0.00038,2]
[314401289,1708287046193,-158.44830995,0.00038,2]
[314401291,1708287046202,-158.44830995,0.00038,2]
[314401293,1708287046212,-158.44830995,0.00038,2]
[314401295,1708287046222,-158.44830995,0.00038,2]
[314401297,1708287046230,-158.44830995,0.00038,2]
[314401299,1708287046239,-158.44830995,0.00038,2]
[314401301,1708287046249,-158.44830995,0.00038,2]
[314401303,1708287046258,-158.44830995,0.00038,2]
[314401305,1708287046267,-158.44830995,0.00038,2]
[314401307,1708287046277,-158.44830995,0.00038,2]
[314401309,1708287046286,-158.44830995,0.00038,2]
[314401311,1708287046296,-158.44830995,0.00038,2]
[314401313,1708287046305,-158.44830995,0.00038,2]
[314401315,1708287046314,-158.44830995,0.00038,2]
[314401317,1708287046323,-158.44830995,0.00038,2]
[314401319,1708287046332,-158.44830995,0.00038,2]
[314401320,1708287046341,-158.44830995,0.00038,2]
[314401321,1708287046350,-158.44830995,0.00038,2]
[314401323,1708287046363,-158.44830995,0.00038,2]
[314401324,1708287046373,-158.44830995,0.00038,2]
[314401325,1708287046382,-158.44830995,0.00038,2]
[314401326,1708287046392,-158.44830995,0.00038,2]
[314401327,1708287046401,-158.44830995,0.00038,2]
[314401328,1708287046411,-158.44830995,0.00038,2]
[314401329,1708287046420,-158.44830995,0.00038,2]
[314401330,1708287046430,-158.44830995,0.00038,2]
[314401331,1708287046440,-158.44830995,0.00038,2]
[314401332,1708287046449,-158.44830995,0.00038,2]
[314401333,1708287046458,-158.44830995,0.00038,2]
[314401334,1708287046468,-158.44830995,0.00038,2]
[314401335,1708287046478,-158.44830995,0.00038,2]
[314401336,1708287046488,-158.44830995,0.00038,2]
[314401337,1708287046497,-158.44830995,0.00038,2]
[314401338,1708287046506,-158.44830995,0.00038,2]
[314401339,1708287046515,-158.44830995,0.00038,2]
[314401340,1708287046524,-158.44830995,0.00038,2]
[314401341,1708287046533,-158.44830995,0.00038,2]
[314401342,1708287046543,-158.44830995,0.00038,2]
[314401343,1708287046553,-158.44830995,0.00038,2]
[314401344,1708287046562,-158.44830995,0.00038,2]
[314401345,1708287046572,-158.44830995,0.00038,2]
[314401346,1708287046581,-158.44830995,0.00038,2]
[314401347,1708287046591,-158.44830995,0.00038,2]
[314401348,1708287046600,-158.44830995,0.00038,2]
[314401349,1708287046610,-158.44830995,0.00038,2]
[314401350,1708287046621,-158.44830995,0.00038,2]
[314401351,1708287046631,-158.44830995,0.00038,2]
[314401352,1708287046641,-158.44830995,0.00038,2]
[314401353,1708287046650,-158.44830995,0.00038,2]
[314401354,1708287046660,-158.44830995,0.00038,2]
[314401355,1708287046669,-158.44830995,0.00038,2]
[314401356,1708287046678,-158.44830995,0.00038,2]
[314401357,1708287046687,-158.44830995,0.00038,2]
[314401358,1708287046698,-158.44830995,0.00038,2]
[314401359,1708287046707,-158.44830995,0.00038,2]
[314401360,1708287046717,-158.44830995,0.00038,2]
[314401361,1708287046728,-158.44830995,0.00038,2]
[314401362,1708287046737,-158.44830995,0.00038,2]
[314401363,1708287046746,-158.44830995,0.00038,2]
[314401364,1708287046755,-158.44830995,0.00038,2]
[314401365,1708287046764,-158.44830995,0.00038,2]
[314401366,1708287046773,-158.44830995,0.00038,2]
[314401367,1708287046783,-158.44830995,0.00038,2]
[314401368,1708287046792,-158.44830995,0.00038,2]
[314401369,1708287046802,-158.44830995,0.00038,2]
[314401370,1708287046811,-158.44830995,0.00038,2]
[314401371,1708287046820,-158.44830995,0.00038,2]
[314401372,1708287046830,-154.4,0.00038009,2]
[314401373,1708287046839,-79793.5001519,0.00038062,3]
[314401375,1708287046848,-500.0,0.00038071,2]
[314401376,1708287046857,-500.0,0.00038071,2]
[314401377,1708287046866,-500.0,0.00038071,2]
[314401378,1708287046875,-764.1,0.00038071,2]
[314401379,1708287046885,-500.0,0.00038071,2]
[314401380,1708287046894,-500.0,0.00038071,2]
[314401381,1708287046903,-500.0,0.00038071,2]
[314401382,1708287046912,-500.0,0.00038071,2]
[314401383,1708287046921,-495.58900302,0.00038071,2]
[314401384,1708287046931,-157.57060608,0.00038072,2]
[314401385,1708287046940,-79793.5001519,0.00038072,3]
[314401386,1708287046949,-276.00182467,0.00038081,2]
[314401387,1708287046958,-568.06226629,0.00038081,2]
[314401388,1708287046968,-150.0,0.00038081,2]
[314401389,1708287046977,-500.0,0.00038081,2]
[314401390,1708287046986,-500.0,0.00038081,2]
[314401391,1708287046996,-500.0,0.00038081,2]
[314401392,1708287047005,-500.0,0.00038081,2]
[314401393,1708287047015,-150.59016707,0.00038081,2]
[314401394,1708287047024,-218.28771859,0.00038081,2]
[314401395,1708287047033,-576.12799854,0.00038081,2]
[314401396,1708287047042,-500.0,0.00038081,2]
[314401397,1708287047051,-500.0,0.00038081,2]
[314401398,1708287047061,-500.0,0.00038081,2]
[314401399,1708287047070,-500.0,0.00038081,2]
[314401400,1708287047080,-536.80415839,0.00038081,2]
[314401401,1708287047089,-500.0,0.00038081,2]
[314401402,1708287047098,-500.0,0.00038081,2]
[314401403,1708287047107,-500.0,0.00038081,2]
[314401404,1708287047117,-500.0,0.00038081,2]
[314401405,1708287047126,-176.71622785,0.00038081,2]
[314401406,1708287047135,-513.14849852,0.00038081,2]
[314401407,1708287047144,-500.0,0.00038081,2]
[314401408,1708287047153,-817.64962032,0.00038081,2]
[314401409,1708287047162,-500.0,0.00038081,2]
[314401410,1708287047171,-500.0,0.00038081,2]
[314401411,1708287047180,-500.0,0.00038081,2]
[314401412,1708287047189,-500.0,0.00038081,2]
[314401413,1708287047198,-500.0,0.00038081,2]
[314401414,1708287047209,-500.0,0.00038081,2]
[314401415,1708287047217,-513.66888968,0.00038081,2]
[314401416,1708287047227,-500.0,0.00038081,2]
[314401417,1708287047237,-450.95125267,0.00038081,2]
[314401418,1708287047246,-500.0,0.00038081,2]
[314401419,1708287047255,-500.0,0.00038081,2]
[314401420,1708287047264,-500.0,0.00038081,2]
[314401421,1708287047273,-536.0688926,0.00038081,2]
[314401422,1708287047283,-500.0,0.00038081,2]
[314401423,1708287047291,-500.0,0.00038081,2]
[314401424,1708287047300,-503.61,0.00038081,2]
[314401425,1708287047310,-500.0,0.00038081,2]
[314401426,1708287047319,-500.0,0.00038081,2]
[314401427,1708287047328,-500.0,0.00038081,2]
[314401428,1708287047337,-500.0,0.00038081,2]
[314401429,1708287047346,-500.0,0.00038081,2]
[314401430,1708287047356,-500.0,0.00038081,2]
[314401431,1708287047365,-500.0,0.00038081,2]
[314401432,1708287047374,-500.0,0.00038081,2]
[314401433,1708287047384,-293.8035311,0.00038081,2]
[314401434,1708287047393,-500.0,0.00038081,2]
[314401435,1708287047403,-526.43234531,0.00038081,2]
[314401436,1708287047412,-500.0,0.00038081,2]
[314401437,1708287047422,-511.36777613,0.00038081,2]
[314401438,1708287047431,-378.0449458,0.00038081,2]
[314401439,1708287047440,-500.0,0.00038081,2]
[314401440,1708287047450,-594.07784731,0.00038081,2]
[314401441,1708287047459,-500.0,0.00038081,2]
[314401442,1708287047469,-500.0,0.00038081,2]
[314401443,1708287047480,-500.0,0.00038081,2]
[314401444,1708287047489,-500.0,0.00038081,2]
[314401445,1708287047498,-500.0,0.00038081,2]
[314401446,1708287047507,-516.7381414,0.00038081,2]
[314401447,1708287047516,-500.0,0.00038081,2]
[314401448,1708287047528,-598.87312458,0.00038081,2]
[314401449,1708287047541,-500.0,0.00038081,2]
[314401450,1708287047554,-500.0,0.00038081,2]
[314401451,1708287047568,-500.0,0.00038081,2]
[314401452,1708287047581,-500.0,0.00038081,2]
[314401453,1708287047593,-500.0,0.00038081,2]
[314401454,1708287047605,-500.0,0.00038081,2]
[314401455,1708287047621,-500.0,0.00038081,2]
[314401456,1708287047633,-500.0,0.00038081,2]
[314401457,1708287047656,-500.0,0.00038081,2]
[314401458,1708287047673,-500.0,0.00038081,2]
[314401459,1708287047689,-500.0,0.00038081,2]
[314401460,1708287047705,-562.38092717,0.00038081,2]
[314401461,1708287047717,-500.0,0.00038081,2]
[314401462,1708287047732,-500.0,0.00038081,2]
[314401463,1708287047744,-500.0,0.00038081,2]
[314401464,1708287047756,-500.0,0.00038081,2]
[314401465,1708287047767,-500.0,0.00038081,2]
[314401466,1708287047779,-548.15,0.00038081,2]
[314401467,1708287047790,-500.0,0.00038081,2]
[314401468,1708287047801,-500.0,0.00038081,2]
[314401469,1708287047812,-500.0,0.00038081,2]
[314401470,1708287047824,-500.0,0.00038081,2]
[314401471,1708287047836,-500.0,0.00038081,2]
[314401472,1708287047849,-500.0,0.00038081,2]
[314401473,1708287047863,-562.54890539,0.00038081,2]
[314401474,1708287047875,-500.0,0.00038081,2]
[314401475,1708287047887,-500.0,0.00038081,2]
[314401476,1708287047900,-554.74826276,0.00038081,2]
[314401477,1708287047911,-500.0,0.00038081,2]
[314401478,1708287047924,-500.0,0.00038081,2]
[314401479,1708287047936,-500.0,0.00038081,2]
[314401480,1708287047949,-500.0,0.00038081,2]
[314401481,1708287047961,-500.0,0.00038081,2]
[314401482,1708287047974,-500.0,0.00038081,2]
[314401483,1708287047986,-554.60977088,0.00038081,2]
[314401484,1708287047998,-500.0,0.00038081,2]
[314401485,1708287048009,-500.0,0.00038081,2]
[314401486,1708287048020,-500.0,0.00038081,2]
[314401487,1708287048032,-500.0,0.00038081,2]
[314401488,1708287048045,-500.0,0.00038081,2]
[314401489,1708287048058,-500.0,0.00038081,2]
[314401490,1708287048070,-500.0,0.00038081,2]
[314401491,1708287048080,-500.0,0.00038081,2]
[314401492,1708287048090,-500.0,0.00038081,2]
[314401493,1708287048101,-500.0,0.00038081,2]
[314401494,1708287048115,-607.64999555,0.00038081,2]
[314401495,1708287048127,-500.0,0.00038081,2]
[314401496,1708287048138,-573.23709741,0.00038081,2]
[314401497,1708287048149,-500.0,0.00038081,2]
[314401498,1708287048162,-500.0,0.00038081,2]
[314401499,1708287048174,-500.0,0.00038081,2]
[314401500,1708287048184,-178.70871174,0.00038081,2]
[314401501,1708287048193,-534.8065956,0.00038081,2]
[314401502,1708287048203,-500.0,0.00038081,2]
[314401503,1708287048213,-500.0,0.00038081,2]
[314401504,1708287048223,-500.0,0.00038081,2]
[314401505,1708287048234,-500.0,0.00038081,2]
[314401506,1708287048247,-500.0,0.00038081,2]
[314401507,1708287048257,-500.0,0.00038081,2]
[314401508,1708287048268,-500.0,0.00038081,2]
[314401509,1708287048278,-500.0,0.00038081,2]
[314401510,1708287048289,-500.0,0.00038081,2]
[314401511,1708287048299,-500.0,0.00038081,2]
[314401512,1708287048309,-500.0,0.00038081,2]
[314401513,1708287048320,-500.0,0.00038081,2]
[314401514,1708287048330,-321.65752929,0.00038081,2]
[314401515,1708287048341,-500.0,0.00038081,2]
[314401516,1708287048352,-500.0,0.00038081,2]
[314401517,1708287048363,-500.0,0.00038081,2]
[314401518,1708287048375,-500.0,0.00038081,2]
[314401519,1708287048387,-500.0,0.00038081,2]
[314401520,1708287048398,-430836.62317798,0.00038082,3]
[314401521,1708287048637,-997.14573852,0.00038082,3]
[314401522,1708287048651,-677.19532113,0.00038082,3]
[314401523,1708287048746,-414.74142257,0.00027999,2]
[314401524,1708287048758,-1264.88376314,0.00037982,2]
[314401525,1708287048768,-35037.13006429,0.00038082,3]
[314401526,1708287048781,-51353.41351727,0.00038082,3]
[314401527,1708287049004,-21.775,0.00038082,3]
[314401528,1708287049024,-586392.59258594,0.00038082,3]
[314401529,1708287049055,-3831.93528571,0.00038082,3]
[314401530,1708287049066,-1348.16471429,0.00038082,14]
[314401531,1708287049080,-5052.65612485,0.00038082,14]
[314401532,1708287049095,-15220.32429564,0.00038082,14]
[314401533,1708287049116,-1539.85648596,0.00038082,14]
[314401534,1708287049129,-7124.16122036,0.00038082,14]
[314401535,1708287049140,-4704.67260795,0.00038082,14]
[314401557,1708288231583,-414.74142257,0.00023045,2]
[314401558,1708288231592,-1665.027067,0.00023046,2]
[314401559,1708288231601,-217.96215078,0.000234,2]
[314401560,1708288231610,-291.62946987,0.00023539,2]
[314401561,1708288231619,-150.0,0.00023899,2]
[314401562,1708288231627,-2104.76735099,0.000239,2]
[314401563,1708288231639,-2524.80804495,0.000239,2]
[314401564,1708288231650,-5175.56868453,0.000239,2]
[314401565,1708288231659,-550.0,0.00025,3]
[314401566,1708288231668,-210.0,0.00026289,2]
[314401567,1708288231678,-600.0,0.00027,3]
[314401568,1708288231687,-650.0,0.00029,3]
[314401569,1708288231697,-150.99,0.00029,2]
[314401570,1708288231706,-155.0,0.0003,4]
[314401571,1708288231716,-206.0,0.00030886,2]
[314401572,1708288231725,-700.0,0.00031,3]
[314401573,1708288231734,-724.33,0.00031503,2]
[314401574,1708288231743,-499.99,0.000323,2]
[314401575,1708288231752,-394.91467415,0.00032398,2]
[314401576,1708288231762,-1738.0,0.000324,2]
[314401577,1708288231771,-11684.0,0.000324,2]
[314401578,1708288231780,-2395.29,0.0003282,2]
[314401579,1708288231792,-5000.0,0.000329,2]
[314401580,1708288231802,-1000.0,0.00032999,2]
[314401581,1708288231811,-750.0,0.00033,3]
[314401582,1708288231821,-600.0,0.00033,34]
[314401583,1708288231830,-373.95,0.00033241,2]
[314401584,1708288231839,-685.16,0.00033421,2]
[314401585,1708288231849,-11169.44,0.00033498,2]
[314401586,1708288231858,-200.0,0.00033505,2]
[314401587,1708288231867,-5929.49,0.00033517,2]
[314401588,1708288231876,-154.06,0.00033529,2]
[314401589,1708288231886,-23890.0,0.00033537,2]
[314401590,1708288231895,-697.96,0.00033626,2]
[314401591,1708288231904,-500.0,0.00033658,2]
[314401592,1708288231913,-153.18,0.00033662,2]
[314401593,1708288231922,-250.0,0.00033672,2]
[314401594,1708288231931,-538.88,0.00033674,2]
[314401595,1708288231941,-177.26,0.00033674,2]
[314401596,1708288231950,-750.0,0.00033677,2]
[314401597,1708288231959,-200.0,0.00033677,2]
[314401598,1708288231968,-154.06,0.00033688,2]
[314401599,1708288231977,-697.27,0.00033719,2]
[314401600,1708288231986,-724.33,0.00033766,2]
[314401601,1708288231996,-2000.0,0.00033776,2]
[314401602,1708288232006,-206.0,0.00033797,7]
[314401603,1708288232015,-250.0,0.00033801,2]
[314401604,1708288232028,-250.0,0.00033816,111]
[314401605,1708288232037,-150.0,0.00033827,2]
[314401606,1708288232047,-154.06,0.00033846,2]
[314401607,1708288232056,-150.0,0.00033868,2]
[314401608,1708288232069,-1197.57,0.00033991,2]
[314401609,1708288232078,-154.06,0.00034005,2]
[314401610,1708288232087,-15645.02,0.00034046,2]
[314401611,1708288232097,-154.06,0.00034164,2]
[314401612,1708288232107,-200.0,0.00034227,2]
[314401613,1708288232115,-154.06,0.00034323,2]
[314401614,1708288232125,-154.06,0.00034482,2]
[314401615,1708288232134,-567.11,0.00034521,2]
[314401616,1708288232143,-154.06,0.00034641,2]
[314401617,1708288232152,-153.18,0.00034784,2]
[314401618,1708288232161,-154.06,0.00034799,2]
[314401619,1708288232170,-154.06,0.00034958,2]
[314401620,1708288232179,-154.06,0.00035117,2]
[314401621,1708288232189,-169.24,0.00035255,2]
[314401622,1708288232198,-697.96,0.00035269,2]
[314401623,1708288232209,-154.06,0.00035276,2]
[314401624,1708288232219,-152.81231917,0.00035423,2]
[314401625,1708288232228,-154.21,0.00035436,2]
[314401626,1708288232237,-461.12,0.00035536,2]
[314401627,1708288232252,-500.0,0.000356,2]
[314401628,1708288232262,-154.21,0.00035657,2]
[314401629,1708288232271,-242.4,0.00035767,2]
[314401630,1708288232280,-567.11,0.00035798,2]
[314401631,1708288232289,-154.21,0.00035879,2]
[314401632,1708288232299,-153.18,0.00035906,2]
[314401633,1708288232308,-152.81231917,0.00035943,2]
[314401634,1708288232317,-170.0,0.00036,2]
[314401635,1708288232326,-242.53,0.00036,2]
[314401636,1708288232335,-724.33,0.0003603,2]
[314401637,1708288232344,-154.21,0.000361,2]
[314401638,1708288232353,-154.21,0.00036322,2]
[314401639,1708288232362,-152.81231917,0.00036463,2]
[314401640,1708288232371,-7008.853,0.00036524,3]
[314401641,1708288232380,-2525.2473,0.00036524,2]
[314401642,1708288232390,-4110.9535,0.00036524,2]
[314401643,1708288232400,-2322.8902,0.00036524,2]
[314401644,1708288232409,-154.21,0.00036543,2]
[314401645,1708288232418,-1255.74,0.00036551,2]
[314401646,1708288232427,-151.0,0.00036554,2]
[314401647,1708288232436,-500.0,0.00036623,2]
[314401648,1708288232445,-500.0,0.00036623,2]
[314401649,1708288232455,-500.0,0.00036623,2]
[314401650,1708288232464,-668.59,0.00036623,2]
[314401651,1708288232474,-206.0,0.00036709,13]